bitfinex/quotes_SOLUSD_20220119
["timestamp","ask_amount","ask_price","bid_price","bid_amount"]
[1642600217815,2.22431428,137.18,137.12,10.53]
[1642600218015,2.22431428,137.18,137.13,38.30781066]
[1642600218216,2.22431428,137.18,137.13,38.55781066]
[1642600218918,1.97431428,137.18,137.13,38.55781066]
[1642600219419,2.916,137.19,137.13,38.55781066]
[1642600219420,1.97431428,137.19,137.14,10.53]
[1642600219717,1.97431428,137.22,137.15,0.25]
[1642600219917,1.97431428,137.22,137.16,10.53]
[1642600220142,21.90945292,137.21,137.16,10.53]
[1642600220342,2.915,137.2,137.12,10.53]
[1642600220544,4.88931428,137.2,137.12,10.53]
[1642600220742,2.22431428,137.19,137.12,10.53]
[1642600220943,2.916,137.18,137.12,10.53]
[1642600221144,37.25491736,137.17,137.08,47.33803336]
[1642600221344,2.916,137.16,137.09,10.53]
[1642600221744,0.25,137.15,137.09,10.53]
[1642600221947,2.916,137.14,137.09,10.53]
[1642600222144,2.916,137.14,137.06,10.53]
[1642600222545,2.916,137.14,137.07,40.41038627]
[1642600222744,2.916,137.14,137.08,0.25]
[1642600223242,2.916,137.15,137.08,0.25]
[1642600223644,24.1205442,137.14,137.08,0.25]
[1642600223843,2.916,137.13,137.08,0.25]
[1642600224043,2.916,137.13,137.07,0.25]
[1642600224243,0.25,137.14,137.07,0.25]
[1642600224845,0.25,137.14,137.07,43.95893389]
[1642600225443,0.25,137.14,137.08,10.9422]
[1642600225844,0.25,137.14,137.09,0.25]
[1642600226446,0.25,137.14,137.08,10.9422]
[1642600226646,0.25,137.14,137.07,43.70893389]
[1642600227047,2.22431428,137.14,137.07,43.70893389]
[1642600227250,2.22431428,137.14,137.06,10.53]
[1642600227447,2.916,137.13,137.06,10.53]
[1642600227649,15.83531428,137.13,137.06,10.53]
[1642600227848,0.25,137.12,137.06,10.53]
[1642600228048,2.916,137.11,137.06,10.53]
[1642600230754,0.25,137.1,137.02,10.53]
[1642600230953,2.918,137.09,137.01,10.53]
[1642600231251,0.25,137.08,137.01,10.78]
[1642600231453,47.41105695,137.08,137.01,47.37269616]
[1642600231650,0.25,137.08,137.01,47.37269616]
[1642600232455,0.25,137.08,137.01,58.32009616]
[1642600232652,0.25,137.08,137.01,58.07009616]
[1642600233654,2.918,137.07,137.01,47.12269616]
[1642600233954,2.918,137.07,137.02,0.25]
[1642600234355,25.46680128,137.07,137.02,0.25]
[1642600234556,25.46680128,137.07,136.98,2.918]
[1642600234761,25.46680128,137.07,136.99,10.78]
[1642600234762,2.22431428,137.06,136.99,10.78]
[1642600234959,2.919,137.05,136.99,10.78]
[1642600235357,38.57666028,137.04,136.99,10.78]
[1642600236155,38.57666028,137.04,136.99,10.53]
[1642600236355,49.52896028,137.04,136.99,10.53]
[1642600236556,2.919,137.03,136.99,10.53]
[1642600237256,5.14331428,137.06,136.99,10.53]
[1642600237558,3.169,137.06,136.99,10.53]
[1642600237756,3.169,137.06,137.0,0.25]
[1642600237955,3.169,137.06,137.0,46.06136121]
[1642600238156,2.919,137.06,137.0,46.06136121]
[1642600239156,2.919,137.07,137.0,46.06136121]
[1642600239356,50.4065697,137.07,137.0,46.06136121]
[1642600239557,0.25,137.06,137.0,46.06136121]
[1642600240162,11.2003,137.06,137.0,46.06136121]
[1642600240359,11.2003,137.06,136.99,10.53]
[1642600240558,72.93,137.05,136.94,2.919]
[1642600240760,3.169,137.04,136.95,10.53]
[1642600241360,2.919,137.04,136.96,47.15786063]
[1642600241558,50.97861428,137.05,136.96,60.60686063]
[1642600241759,2.919,137.04,136.97,0.25]
[1642600241960,2.919,137.04,136.97,10.78]
[1642600242664,58.22975866,137.04,136.97,10.53]
[1642600242862,0.25,137.03,136.97,10.53]
[1642600243062,2.919,137.02,136.97,10.53]
[1642600243262,0.25,137.01,136.97,10.53]
[1642600243465,2.919,137.0,136.97,10.53]
[1642600243763,3.03219997,136.99,136.97,10.53]
[1642600243963,2.92,137.03,136.97,10.53]
[1642600244863,2.919,137.04,136.98,0.25]
[1642600245063,51.9233,137.05,136.98,0.25]
[1642600245671,2.919,137.05,136.98,11.2004]
[1642600245869,4.89331428,137.08,137.0,36.6022092]
[1642600246069,2.919,137.08,137.01,10.53]
[1642600246271,2.919,137.08,137.01,10.78]
[1642600246798,4.89331428,137.08,137.01,10.78]
[1642600247001,0.25,137.07,137.01,10.78]
[1642600247203,2.918,137.06,136.98,10.53]
[1642600247400,2.918,137.06,136.97,0.25]
[1642600247597,18.08670677,137.05,136.97,0.25]
[1642600247803,2.919,137.04,136.96,10.53]
[1642600248104,75.849,137.04,136.96,10.53]
[1642600248303,11.2047,137.03,136.96,10.53]
[1642600248501,2.919,137.02,136.96,10.53]
[1642600248702,0.25,137.01,136.96,10.53]
[1642600249000,2.92,137.0,136.96,10.53]
[1642600249700,17.83670677,136.98,136.96,10.53]
[1642600249901,6.06439994,136.97,136.96,10.03]
[1642600253404,17.02169994,136.97,136.96,10.03]
[1642600256606,6.06439994,136.97,136.96,10.03]
[1642600257008,6.06439994,136.97,136.96,10.28]
[1642600257208,2.92,137.02,136.96,10.03]
[1642600257607,38.41799245,137.01,136.96,10.03]
[1642600257807,13.8757,137.0,136.96,10.03]
[1642600259107,15.84851428,137.02,136.96,10.03]
[1642600259308,4.89331428,137.03,136.97,0.25]
[1642600259509,4.89331428,137.03,136.98,10.53]
[1642600259708,2.919,137.03,136.98,10.53]
[1642600259908,4.89331428,137.03,136.98,10.53]
[1642600260110,41.15987203,137.02,136.98,10.53]
[1642600260311,2.919,137.01,136.98,10.53]
[1642600260914,3.03219997,137.0,136.98,10.53]
[1642600261110,2.919,137.02,136.98,10.53]
[1642600262310,4.89331428,137.03,136.98,10.53]
[1642600262512,2.919,137.05,136.98,10.53]
[1642600262713,21.27347492,137.09,136.99,2.919]
[1642600262911,4.12819348,137.09,137.01,131.65]
[1642600263111,7.04719348,137.1,137.02,10.53]
[1642600263313,32.02918653,137.11,137.04,10.9451]
[1642600263314,36.15738001,137.11,137.04,10.9451]
[1642600263515,32.02918653,137.11,137.05,10.53]
[1642600263714,32.02918653,137.11,137.05,49.40821965]
[1642600263914,34.94718653,137.11,137.05,49.40821965]
[1642600264514,34.94718653,137.11,137.05,60.35331965]
[1642600265316,2.918,137.11,137.05,60.35331965]
[1642600265715,2.918,137.12,137.05,60.35331965]
[1642600265916,2.916,137.13,137.05,60.35331965]
[1642600266418,43.03836405,137.13,137.05,60.35331965]
[1642600266616,2.916,137.13,137.05,60.35331965]
[1642600266915,2.916,137.13,137.05,63.26931965]
[1642600267515,2.916,137.14,137.05,63.26931965]
[1642600267927,2.916,137.14,137.05,64.5808797]
[1642600268329,2.916,137.14,137.05,63.26931965]
[1642600269327,28.51742527,137.13,137.05,63.26931965]
[1642600269528,2.916,137.12,137.05,60.35331965]
[1642600269928,4.62279619,137.15,137.06,2.916]
[1642600270129,1.70679619,137.15,137.08,10.9424]
[1642600270328,1.70679619,137.15,137.09,10.53]
[1642600270329,2.916,137.14,137.09,10.53]
[1642600270528,2.916,137.14,137.09,10.78]
[1642600271332,2.916,137.14,137.09,10.53]
[1642600272035,0.25,137.13,137.09,10.53]
[1642600272232,2.916,137.12,137.09,10.53]
[1642600272530,6.06439994,137.11,137.09,10.53]
[1642600273351,8.98039994,137.11,137.09,10.53]
[1642600274553,19.92719994,137.11,137.09,10.53]
[1642600274956,0.25,137.1,137.06,10.53]
[1642600275254,2.918,137.09,137.06,10.53]
[1642600275454,6.06439994,137.08,137.06,10.53]
[1642600275855,46.30314929,137.08,137.06,10.53]
[1642600276256,6.06439994,137.08,137.06,10.53]
[1642600276460,2.918,137.09,137.06,10.53]
[1642600276655,2.918,137.13,137.07,0.25]
[1642600276854,2.918,137.13,137.07,10.78]
[1642600277255,2.918,137.13,137.07,59.50430662]
[1642600278054,2.918,137.13,137.07,70.44780662]
[1642600280155,26.8701,137.14,137.07,70.44780662]
[1642600281357,2.916,137.14,137.07,70.44780662]
[1642600282555,4.62279619,137.15,137.07,70.44780662]
[1642600282758,1.70679619,137.15,137.07,70.44780662]
[1642600283155,1.70679619,137.15,137.07,70.19780662]
[1642600283355,38.92531331,137.14,137.07,21.4735]
[1642600283559,2.916,137.13,137.07,10.53]
[1642600283757,0.25,137.12,137.05,13.8606]
[1642600284560,0.25,137.12,137.06,0.25]
[1642600285060,0.25,137.12,137.05,10.9446]
[1642600285260,1.24182627,137.12,137.05,10.9446]
[1642600285461,27.34346253,137.11,137.05,10.9446]
[1642600286261,0.25,137.1,137.04,10.53]
[1642600286462,2.918,137.09,137.04,10.53]
[1642600286661,13.8663,137.09,137.04,10.53]
[1642600286864,2.918,137.09,137.04,10.53]
[1642600287563,2.918,137.1,137.04,10.53]
[1642600288165,2.918,137.1,137.05,0.25]
[1642600288365,41.20886253,137.11,137.05,41.76071332]
[1642600288563,41.20886253,137.11,137.04,10.53]
[1642600288763,41.20886253,137.11,137.05,0.25]
[1642600289365,41.20886253,137.11,137.04,10.53]
[1642600289564,41.20886253,137.11,137.04,59.60682522]
[1642600289764,0.25,137.1,137.04,10.53]
[1642600289963,2.918,137.09,137.04,10.53]
[1642600290765,35.85322426,137.08,137.04,10.53]
[1642600292869,35.85322426,137.08,137.05,0.25]
[1642600293068,3.03219997,137.07,137.05,0.25]
[1642600293269,6.06439994,137.07,137.05,0.25]
[1642600294474,6.06439994,137.07,137.04,10.53]
[1642600295270,0.97842393,137.06,137.04,10.53]
[1642600295670,3.03219997,137.05,137.04,10.53]
[1642600296570,0.97842393,137.06,137.04,10.53]
[1642600297471,6.06439994,137.05,137.04,10.53]
[1642600297670,6.06439994,137.05,137.04,10.78]
[1642600298978,36.22995152,137.05,137.01,10.53]
[1642600299177,36.22995152,137.05,136.92,72.74]
[1642600299178,39.14895152,137.05,136.99,10.53]
[1642600300276,40.12514059,137.05,137.0,0.25]
[1642600300476,37.20614059,137.05,137.0,0.25]
[1642600300676,40.12514059,137.05,137.0,0.25]
[1642600301077,37.20614059,137.05,136.99,10.53]
[1642600301279,2.919,137.04,136.99,10.53]
[1642600301476,3.169,137.04,136.99,10.53]
[1642600302478,14.1215,137.04,136.99,10.53]
[1642600303380,3.169,137.04,136.99,10.53]
[1642600305183,0.97171837,137.03,136.99,10.53]
[1642600307313,0.97171837,137.03,137.0,0.25]
[1642600307516,6.06439994,137.02,136.99,10.53]
[1642600309313,6.06439994,137.02,137.0,0.25]
[1642600309512,6.06439994,137.02,137.0,42.89729257]
[1642600309714,0.97171837,137.03,137.0,42.89729257]
[1642600309913,0.97171837,137.03,137.0,53.42729257]
[1642600310216,27.0755,137.06,137.0,53.42729257]
[1642600311013,27.0755,137.06,137.0,10.78]
[1642600311213,0.25,137.05,137.0,10.78]
[1642600311415,2.919,137.04,137.0,10.78]
[1642600313715,2.919,137.04,137.0,0.25]
[1642600313921,2.919,137.04,136.99,0.25]
[1642600314723,2.919,137.04,136.99,10.78]
[1642600314923,2.919,137.05,136.99,10.78]
[1642600315223,0.97171837,137.03,136.99,10.78]
[1642600315524,0.97171837,137.03,136.99,13.699]
[1642600315723,0.97171837,137.03,136.99,24.649]
[1642600316524,2.919,137.07,136.99,24.649]
[1642600316725,2.919,137.09,136.99,25.96056005]
[1642600317025,2.918,137.1,136.99,25.96056005]
[1642600318627,2.918,137.1,136.99,157.61056005]
[1642600319029,2.918,137.1,137.0,6.0]
[1642600319227,27.89649348,137.12,137.03,10.9441]
[1642600319429,27.89649348,137.12,137.04,13.448]
[1642600319430,23.7683,137.12,137.04,13.448]
[1642600319735,23.7683,137.12,137.05,10.78]
[1642600319929,33.05180956,137.13,137.05,48.83704583]
[1642600320328,34.05284919,137.13,137.05,59.78234583]
[1642600320531,34.05284919,137.13,137.05,48.83704583]
[1642600320730,8.25591714,137.12,137.05,48.83704583]
[1642600320928,2.916,137.11,137.05,48.83704583]
[1642600321928,2.916,137.11,137.05,10.78]
[1642600326031,39.9838385,137.1,137.05,10.78]
[1642600326231,2.918,137.09,137.05,10.53]
[1642600326833,0.25,137.08,137.05,10.53]
[1642600327032,0.25,137.08,137.02,2.916]
[1642600327033,8.98239994,137.07,137.02,2.916]
[1642600327236,8.98239994,137.07,137.03,0.25]
[1642600327437,6.06439994,137.07,137.02,2.916]
[1642600328033,6.06439994,137.07,137.03,39.99155691]
[1642600328238,6.06439994,137.07,137.03,50.52155691]
[1642600328435,26.3826,137.09,137.03,50.52155691]
[1642600328636,23.4646,137.09,137.03,50.52155691]
[1642600328838,23.4646,137.09,137.04,0.25]
[1642600330239,23.4646,137.09,137.05,10.53]
[1642600330639,23.4646,137.09,137.06,0.25]
[1642600331441,6.06439994,137.08,137.06,0.25]
[1642600331939,6.06439994,137.08,137.04,0.25]
[1642600333672,6.06439994,137.08,137.05,10.53]
[1642600334071,6.06439994,137.08,137.06,0.25]
[1642600336372,6.06439994,137.08,137.04,0.25]
[1642600336572,31.55827018,137.07,137.04,10.53]
[1642600336772,31.30827018,137.07,137.01,10.53]
[1642600336973,2.918,137.06,137.02,10.53]
[1642600337575,75.848,137.06,136.98,13.448]
[1642600337776,0.25,137.05,136.98,2.918]
[1642600337974,2.919,137.04,136.98,2.918]
[1642600338175,0.25,137.03,136.98,43.00793821]
[1642600338376,2.919,137.02,136.98,2.918]
[1642600338876,2.919,137.03,136.97,10.53]
[1642600339280,10.9528,137.04,136.98,0.25]
[1642600339478,2.919,137.03,136.97,10.53]
[1642600339677,2.919,137.03,136.98,41.32155254]
[1642600342080,27.1184,137.06,136.98,51.85155254]
[1642600342280,24.1994,137.06,136.98,51.85155254]
[1642600342881,24.1994,137.06,136.99,2.919]
[1642600343080,24.1994,137.06,137.0,21.4793]
[1642600343282,24.1994,137.06,137.01,44.19253991]
[1642600343481,24.1994,137.06,137.01,54.72253991]
[1642600343684,44.29316871,137.07,137.02,0.25]
[1642600343884,2.918,137.06,137.02,0.25]
[1642600344082,2.918,137.07,137.02,0.25]
[1642600344283,2.918,137.08,137.02,0.25]
[1642600344887,2.918,137.08,137.02,40.13511266]
[1642600346588,79.23055578,137.09,137.02,39.88511266]
[1642600346787,79.23055578,137.09,137.03,0.25]
[1642600346988,79.23055578,137.09,137.02,39.88511266]
[1642600347187,79.23055578,137.09,137.02,50.41511266]
[1642600347488,26.7321,137.09,137.03,0.25]
[1642600348690,26.7321,137.09,137.04,10.53]
[1642600348894,22.7268,137.1,137.04,10.53]
[1642600349089,22.7268,137.1,137.05,0.25]
[1642600349290,22.7268,137.1,137.05,10.78]
[1642600349491,22.7268,137.1,137.05,54.76313189]
[1642600352798,2.918,137.11,137.05,54.76313189]
[1642600352999,2.918,137.12,137.05,54.76313189]
[1642600353201,3.168,137.12,137.05,54.76313189]
[1642600356203,2.918,137.12,137.05,54.76313189]
[1642600356404,2.918,137.12,137.05,65.70843189]
[1642600356606,2.916,137.13,137.05,65.70843189]
[1642600356804,3.166,137.13,137.05,65.70843189]
[1642600361039,0.25,137.13,137.05,65.70843189]
[1642600365243,27.5658,137.14,137.05,65.70843189]
[1642600366544,24.6498,137.14,137.05,65.70843189]
[1642600367749,24.6498,137.14,137.06,2.916]
[1642600367950,24.6498,137.14,137.09,36.55751755]
[1642600368753,24.6498,137.14,137.1,0.25]
[1642600369155,24.6498,137.14,137.09,36.55751755]
[1642600369757,24.6498,137.14,137.1,0.25]
[1642600370782,24.6498,137.14,137.09,36.55751755]
[1642600370985,24.6498,137.14,137.08,10.9424]
[1642600371182,0.25,137.13,137.08,10.53]
[1642600371384,2.916,137.12,137.08,10.53]
[1642600371584,2.916,137.12,137.05,2.916]
[1642600371785,0.25,137.11,137.06,0.25]
[1642600371983,2.916,137.1,137.06,0.25]
[1642600374289,2.918,137.11,137.06,0.25]
[1642600374488,3.168,137.11,137.06,0.25]
[1642600376092,3.168,137.11,137.05,2.916]
[1642600376994,14.1154,137.11,137.05,2.916]
[1642600382598,2.06450546,137.09,137.05,2.916]
[1642600383195,2.06450546,137.1,137.05,2.916]
[1642600384897,2.06450546,137.11,137.05,2.916]
[1642600386098,2.06450546,137.11,137.06,0.25]
[1642600387707,2.06450546,137.1,137.06,0.25]
[1642600391307,4.98250546,137.11,137.06,0.25]
[1642600391510,4.98250546,137.11,137.05,0.25]
[1642600391906,2.06450546,137.1,137.05,0.25]
[1642600395107,2.06450546,137.1,137.06,10.53]
[1642600395309,2.06450546,137.11,137.07,0.25]
[1642600395909,25.75600546,137.12,137.07,35.23673694]
[1642600396609,2.06450546,137.12,137.07,35.23673694]
[1642600397108,0.5,137.1,137.07,34.98673694]
[1642600397310,0.5,137.1,137.06,21.4745]
[1642600397511,0.5,137.1,137.06,10.53]
[1642600397715,2.918,137.09,137.03,2.916]
[1642600397911,4.98250546,137.09,137.03,2.916]
[1642600398114,0.25,137.08,137.03,2.916]
[1642600398310,2.918,137.07,137.03,2.916]
[1642600398512,3.168,137.08,137.02,10.53]
[1642600398912,3.168,137.08,137.0,10.9486]
[1642600399118,3.168,137.08,136.99,10.53]
[1642600399119,29.05470546,137.08,136.99,10.53]
[1642600399319,2.06450546,137.06,136.99,10.53]
[1642600399518,2.919,137.05,136.99,10.53]
[1642600399919,2.919,137.05,137.0,47.13497269]
[1642600400120,2.919,137.06,137.0,47.13497269]
[1642600400520,2.919,137.06,137.01,0.25]
[1642600401922,0.25,137.05,136.99,13.448]
[1642600402122,2.919,137.04,136.99,2.918]
[1642600402320,0.25,137.03,136.99,2.918]
[1642600402521,2.919,137.02,136.99,2.918]
[1642600402722,0.25,137.01,136.99,2.918]
[1642600403021,8.98339994,137.0,136.99,2.918]
[1642600404352,9.23339994,137.0,136.99,2.918]
[1642600404552,6.06439994,137.0,136.99,2.918]
[1642600409063,6.06439994,137.0,136.95,35.27056785]
[1642600409263,6.06439994,137.0,136.95,35.52056785]
[1642600409865,6.06439994,137.0,136.95,46.47376785]
[1642600410269,2.92,137.03,136.95,57.00376785]
[1642600411068,46.57828221,137.02,136.95,57.00376785]
[1642600412471,46.57828221,137.02,136.95,21.7332]
[1642600412668,2.92,137.01,136.95,21.7332]
[1642600412868,2.92,137.01,136.95,10.78]
[1642600413069,0.25,137.0,136.95,10.53]
[1642600413271,2.92,136.99,136.95,10.53]
[1642600413469,46.57828221,137.02,136.96,0.25]
[1642600414869,49.49728221,137.02,136.96,0.25]
[1642600415269,46.57828221,137.02,136.96,0.25]
[1642600415469,2.919,137.03,136.96,0.25]
[1642600415668,75.849,137.04,136.97,10.53]
[1642600416070,75.849,137.04,136.96,2.919]
[1642600416269,75.849,137.04,136.95,47.52416383]
[1642600416574,35.24597586,137.03,136.95,47.52416383]
[1642600416769,86.8039,137.02,136.95,47.52416383]
[1642600418773,110.227,137.02,136.95,47.52416383]
[1642600421875,110.227,137.02,136.93,21.4849]
[1642600422075,110.227,137.02,136.94,0.25]
[1642600422877,110.227,137.02,136.94,36.52102977]
[1642600423075,110.227,137.02,136.94,47.05102977]
[1642600423278,0.25,137.01,136.94,47.05102977]
[1642600424285,110.227,137.02,136.94,47.05102977]
[1642600424684,0.25,137.01,136.94,47.05102977]
[1642600424884,2.92,137.0,136.94,10.78]
[1642600425085,0.25,136.99,136.94,10.53]
[1642600425288,2.92,136.98,136.9,34.1621]
[1642600425486,0.25,136.97,136.9,10.53]
[1642600425685,2.92,136.96,136.9,10.53]
[1642600425887,31.74451835,136.95,136.86,50.70042355]
[1642600426186,31.99451835,136.95,136.87,13.8797]
[1642600426388,31.99451835,136.95,136.87,10.9597]
[1642600426792,56.84901835,136.95,136.88,0.25]
[1642600426990,2.92,136.94,136.88,0.25]
[1642600428088,2.92,136.94,136.87,10.9597]
[1642600428288,0.25,136.93,136.87,10.9597]
[1642600428488,0.25,136.93,136.86,48.69229929]
[1642600428687,0.25,136.93,136.86,10.53]
[1642600429888,35.24597586,136.91,136.86,10.53]
[1642600430311,2.92,136.92,136.86,10.53]
[1642600430512,13.8836,136.93,136.86,10.53]
[1642600431215,41.90378032,136.92,136.86,10.53]
[1642600432212,13.8836,136.93,136.87,0.25]
[1642600432412,13.8836,136.93,136.86,10.53]
[1642600433213,49.21496073,136.92,136.86,10.53]
[1642600433414,2.922,136.91,136.86,10.53]
[1642600434017,2.922,136.91,136.83,33.5903]
[1642600434217,0.25,136.9,136.82,33.0779]
[1642600434420,2.922,136.89,136.82,10.53]
[1642600434617,18.02553348,136.88,136.79,12.53812426]
[1642600434819,2.923,136.87,136.79,10.53]
[1642600435419,2.923,136.87,136.8,10.9646]
[1642600435718,0.25,136.86,136.79,10.53]
[1642600436822,0.25,136.86,136.8,0.25]
[1642600437925,37.5026,136.87,136.8,0.25]
[1642600439223,0.25,136.86,136.8,0.25]
[1642600439626,37.5026,136.87,136.8,0.25]
[1642600440724,0.25,136.86,136.8,0.25]
[1642600441026,11.2171,136.86,136.8,0.25]
[1642600441225,45.5660704,136.85,136.8,0.25]
[1642600441625,26.5361,136.87,136.8,0.25]
[1642600441830,2.923,136.89,136.8,0.25]
[1642600442630,47.11687012,136.88,136.8,0.25]
[1642600443029,47.11687012,136.88,136.8,11.215]
[1642600443231,47.11687012,136.88,136.81,49.27068021]
[1642600443629,47.11687012,136.88,136.82,0.25]
[1642600443831,120.04687012,136.88,136.8,0.25]
[1642600444038,131.01257012,136.88,136.79,13.452]
[1642600444239,3.173,136.87,136.79,10.53]
[1642600444439,26.4956,136.87,136.79,10.53]
[1642600445440,37.4626,136.87,136.79,10.53]
[1642600445639,37.4626,136.87,136.75,49.388]
[1642600445839,37.4626,136.87,136.75,33.5594]
[1642600446439,37.4626,136.87,136.76,39.00745798]
[1642600446639,43.1306,136.87,136.76,39.00745798]
[1642600446839,116.0606,136.87,136.77,0.25]
[1642600448843,116.0606,136.87,136.76,39.00745798]
[1642600450272,116.0606,136.87,136.77,0.25]
[1642600451078,26.2456,136.87,136.77,0.25]
[1642600451280,26.2456,136.87,136.77,10.78]
[1642600451473,23.3226,136.87,136.78,2.923]
[1642600451676,48.28686757,136.88,136.79,41.10449431]
[1642600451874,1.16999745,136.88,136.8,2.923]
[1642600452273,1.16999745,136.88,136.81,0.25]
[1642600452473,1.16999745,136.88,136.82,10.9637]
[1642600452873,1.16999745,136.88,136.82,57.19720389]
[1642600453876,1.16999745,136.88,136.83,0.25]
[1642600454275,1.16999745,136.88,136.82,57.19720389]
[1642600454575,1.16999745,136.88,136.79,13.452]
[1642600454776,2.923,136.87,136.8,0.25]
[1642600455475,2.923,136.87,136.8,58.36616028]
[1642600457076,0.25,136.86,136.8,58.36616028]
[1642600457276,0.25,136.86,136.8,11.2152]
[1642600457476,0.25,136.86,136.79,10.9661]
[1642600457679,2.923,136.85,136.77,13.453]
[1642600457878,2.923,136.85,136.78,0.25]
[1642600458075,2.923,136.86,136.78,0.25]
[1642600458277,3.173,136.86,136.78,43.75016123]
[1642600458479,29.2613671,136.85,136.78,54.71696123]
[1642600459378,3.173,136.86,136.78,54.71696123]
[1642600459879,3.173,136.86,136.78,54.46696123]
[1642600461280,14.1402,136.86,136.79,0.25]
[1642600462379,87.0702,136.86,136.77,2.00812426]
[1642600462581,22.9873,136.85,136.76,2.923]
[1642600462785,10.9704,136.83,136.76,2.923]
[1642600462984,2.924,136.82,136.76,2.923]
[1642600463180,2.924,136.82,136.73,12.53812426]
[1642600463181,3.174,136.82,136.73,12.53812426]
[1642600463379,3.174,136.82,136.74,37.92815852]
[1642600463380,32.15557603,136.81,136.74,37.92815852]
[1642600463581,2.924,136.8,136.74,37.92815852]
[1642600463784,3.174,136.8,136.75,0.25]
[1642600463981,0.25,136.8,136.75,0.25]
[1642600464784,0.25,136.81,136.75,0.25]
[1642600464982,2.924,136.8,136.75,0.25]
[1642600467287,27.1383,136.81,136.75,0.25]
[1642600469089,27.1383,136.81,136.74,48.89815852]
[1642600469288,38.1097,136.81,136.73,12.53812426]
[1642600469490,38.1097,136.81,136.71,12.53812426]
[1642600469891,38.1097,136.81,136.71,10.53]
[1642600470291,38.1097,136.81,136.71,55.01360571]
[1642600470493,38.1097,136.81,136.71,65.98550571]
[1642600470691,38.1097,136.81,136.72,0.25]
[1642600472493,38.1097,136.81,136.71,21.5019]
[1642600472800,38.1097,136.81,136.69,2.00812426]
[1642600472801,1.7738939,136.8,136.69,2.00812426]
[1642600472993,10.9754,136.78,136.68,2.924]
[1642600473194,25.719,136.77,136.69,0.25]
[1642600473593,31.17959066,136.76,136.69,0.25]
[1642600473897,3.174,136.75,136.69,0.25]
[1642600474494,14.1499,136.75,136.69,0.25]
[1642600476319,13.8999,136.75,136.69,0.25]
[1642600476530,13.8999,136.75,136.67,57.97319338]
[1642600476721,0.25,136.74,136.68,0.25]
[1642600477020,0.25,136.74,136.67,57.97319338]
[1642600478020,0.25,136.74,136.67,59.2856184]
[1642600478220,0.25,136.74,136.69,10.9739]
[1642600478622,0.25,136.75,136.7,0.25]
[1642600479822,0.25,136.75,136.7,11.2232]
[1642600480024,0.25,136.75,136.7,10.9732]
[1642600480222,0.25,136.76,136.7,10.9732]
[1642600480424,0.25,136.76,136.68,0.25]
[1642600480622,0.25,136.76,136.68,10.78]
[1642600482426,0.25,136.76,136.68,10.53]
[1642600482630,11.2251,136.76,136.68,10.53]
[1642600483527,2.924,136.75,136.68,10.53]
[1642600483728,0.25,136.74,136.68,10.53]
[1642600483928,11.2267,136.74,136.68,10.53]
[1642600484141,20.18874288,136.73,136.68,10.53]
[1642600484730,0.25,136.72,136.68,10.53]